bitfinex/quotes_BTCUSD_20251217
["timestamp","ask_amount","ask_price","bid_price","bid_amount"]
[1765941601400,0.02626,87575.0,87574.0,0.31906667]
[1765941601620,0.01141826,87579.0,87575.0,0.23979273]
[1765941602030,0.01141826,87579.0,87575.0,0.01141878]
[1765941602658,0.01141839,87578.0,87575.0,0.01141878]
[1765941602870,0.01141826,87579.0,87575.0,0.23979254]
[1765941603071,0.01141826,87579.0,87576.0,0.01141865]
[1765941603993,0.01141839,87578.0,87575.0,0.23979254]
[1765941604534,0.01141826,87579.0,87576.0,0.01141865]
[1765941604745,0.01241826,87579.0,87576.0,0.01141865]
[1765941604953,0.001,87579.0,87576.0,0.23978984]
[1765941605359,0.001,87579.0,87577.0,0.22836879]
[1765941605492,0.24799974,87581.0,87577.0,0.23978731]
[1765941605698,0.24799974,87581.0,87578.0,0.01141839]
[1765941606244,0.019638,87581.0,87578.0,0.01141839]
[1765941606412,0.00822,87581.0,87578.0,0.23978378]
[1765941606616,0.00822,87581.0,87579.0,0.22836273]
[1765941606830,0.04268358,87590.0,87578.0,0.23978378]
[1765941606831,0.00836,87590.0,87584.0,0.05001839]
[1765941607040,0.23975338,87590.0,87587.0,0.03456721]
[1765941607240,0.01141682,87590.0,87587.0,0.01141721]
[1765941608144,0.01541682,87590.0,87587.0,0.01141721]
[1765941608468,0.01341682,87590.0,87587.0,0.01141721]
[1765941608671,0.002,87590.0,87587.0,0.01141721]
[1765941608876,0.004,87590.0,87587.0,0.01141721]
[1765941609240,0.002,87590.0,87587.0,0.01141721]
[1765941609646,0.004,87590.0,87587.0,0.01141721]
[1765941610196,0.004,87590.0,87587.0,0.23975993]
[1765941610336,0.004,87590.0,87588.0,0.22833983]
[1765941611017,0.002,87590.0,87588.0,0.22833983]
[1765941611656,0.01141656,87592.0,87588.0,0.23975691]
[1765941611812,0.002,87590.0,87588.0,0.23975691]
[1765941612025,0.002,87590.0,87587.0,0.01141721]
[1765941612248,0.002,87590.0,87587.0,0.28977998]
[1765941612470,0.004,87590.0,87588.0,0.22833989]
[1765941612930,0.002,87590.0,87588.0,0.22833989]
[1765941613330,0.004,87590.0,87588.0,0.22833989]
[1765941613673,0.002,87590.0,87588.0,0.22833989]
[1765941613874,0.01141656,87592.0,87587.0,0.05001839]
[1765941613875,0.23975285,87591.0,87587.0,0.05001839]
[1765941614080,0.002,87590.0,87587.0,0.05001839]
[1765941614465,0.01341682,87590.0,87587.0,0.0614356]
[1765941614683,0.01541682,87590.0,87587.0,0.0614356]
[1765941614837,0.01341682,87590.0,87587.0,0.0614356]
[1765941615263,0.01541682,87590.0,87587.0,0.0614356]
[1765941615486,0.01341682,87590.0,87587.0,0.0614356]
[1765941616375,0.22833917,87589.0,87587.0,0.05001839]
[1765941616807,0.01541682,87590.0,87587.0,0.05001839]
[1765941617366,0.01141682,87590.0,87587.0,0.05001839]
[1765941618007,0.002,87589.0,87587.0,0.05001839]
[1765941618231,0.01141682,87590.0,87587.0,0.0614356]
[1765941618684,0.01341682,87590.0,87587.0,0.0614356]
[1765941618845,0.001,87589.0,87587.0,0.0614356]
[1765941619043,0.001,87589.0,87587.0,0.28977769]
[1765941619250,0.01141669,87591.0,87587.0,0.28977769]
[1765941619820,0.002,87590.0,87587.0,0.28977769]
[1765941620233,0.002,87589.0,87587.0,0.28977769]
[1765941620570,0.01341669,87591.0,87587.0,0.28977769]
[1765941620776,0.24175226,87591.0,87587.0,0.28977769]
[1765941620977,0.01141682,87590.0,87587.0,0.0614356]
[1765941621377,0.01302969,87590.0,87587.0,0.0614356]
[1765941621592,0.002,87589.0,87587.0,0.0614356]
[1765941621790,0.01302969,87590.0,87587.0,0.0614356]
[1765941622043,0.01502969,87590.0,87587.0,0.0614356]
[1765941622216,0.01702969,87590.0,87587.0,0.0614356]
[1765941623028,0.00836,87589.0,87586.0,0.28978206]
[1765941623286,0.24811794,87589.0,87585.0,0.05001839]
[1765941623493,0.24811794,87589.0,87585.0,0.06143587]
[1765941623698,0.25011794,87589.0,87585.0,0.06143587]
[1765941624119,0.24811794,87589.0,87585.0,0.06143587]
[1765941624313,0.02177695,87589.0,87585.0,0.28978394]
[1765941624522,0.02177695,87589.0,87586.0,0.01141734]
[1765941624763,0.01977695,87589.0,87586.0,0.01141734]
[1765941624963,0.02177695,87589.0,87586.0,0.01141734]
[1765941625166,0.02277695,87589.0,87586.0,0.01141734]
[1765941625803,0.01141708,87588.0,87584.0,0.05001839]
[1765941626031,0.22834699,87586.0,87584.0,0.05001839]
[1765941626455,0.22834699,87586.0,87583.0,0.05001839]
[1765941626655,0.24443221,87584.0,87583.0,0.05001839]
[1765941626903,0.01936774,87583.0,87582.0,0.05001839]
[1765941627237,0.01936774,87583.0,87581.0,0.05001839]
[1765941627603,0.24772509,87583.0,87581.0,0.05001839]
[1765941627738,0.01936774,87583.0,87580.0,0.05001839]
[1765941628378,0.01936774,87583.0,87580.0,0.06143652]
[1765941628689,0.02036774,87583.0,87580.0,0.06143652]
[1765941628883,0.00895,87583.0,87580.0,0.28979711]
[1765941629292,0.00795,87583.0,87580.0,0.28979711]
[1765941629622,0.00995,87583.0,87580.0,0.28979711]
[1765941630064,0.00995,87583.0,87580.0,0.06143652]
[1765941630271,0.02136774,87583.0,87580.0,0.06143652]
[1765941630476,0.02036774,87583.0,87580.0,0.06143652]
[1765941630840,0.02136774,87583.0,87580.0,0.06143652]
[1765941631648,0.02136774,87583.0,87580.0,0.28979754]
[1765941632435,0.00995,87583.0,87580.0,0.06143652]
[1765941633404,0.00995,87583.0,87580.0,0.28979718]
[1765941635306,0.00995,87583.0,87580.0,0.06143652]
[1765941635499,0.00995,87583.0,87580.0,0.28979761]
[1765941635921,0.00995,87583.0,87582.0,0.05001839]
[1765941636902,0.00895,87583.0,87582.0,0.05001839]
[1765941637107,0.00822,87587.0,87582.0,0.28979205]
[1765941637311,0.002,87583.0,87582.0,0.28979205]
[1765941637715,0.002,87583.0,87582.0,0.31423205]
[1765941637946,0.001,87583.0,87582.0,0.33048205]
[1765941638535,0.001,87583.0,87582.0,0.30604205]
[1765941639487,0.001,87583.0,87582.0,0.28979205]
[1765941640171,0.002,87583.0,87582.0,0.28979205]
[1765941660082,0.002,87583.0,87582.0,0.53309304]
[1765941660405,0.002,87583.0,87582.0,0.350259]
[1765941660610,0.002,87583.0,87582.0,0.46379981]
[1765941661785,0.001,87583.0,87582.0,0.350259]
[1765941661985,0.001,87583.0,87582.0,0.46379981]
[1765941662182,0.00163582,87599.0,87598.0,0.22831571]
[1765941662391,0.00163582,87599.0,87598.0,0.2783341]
[1765941664706,0.00163582,87599.0,87598.0,0.3178241]
[1765941665309,0.00163582,87599.0,87598.0,0.39853827]
[1765941666714,0.00163582,87599.0,87598.0,0.08950839]
[1765941666920,0.00163582,87599.0,87598.0,0.05001839]
[1765941672011,0.22994892,87599.0,87598.0,0.05001839]
[1765941672229,0.01141682,87590.0,87586.0,0.01141734]
[1765941672468,0.25179917,87589.0,87587.0,0.05001839]
[1765941672638,0.22834699,87586.0,87585.0,0.03431385]
[1765941672843,0.23976433,87586.0,87583.0,0.05001839]
[1765941673552,0.01141708,87588.0,87583.0,0.06143613]
[1765941673711,0.01141708,87588.0,87585.0,0.06143587]
[1765941675450,0.23975505,87590.0,87585.0,0.28978339]
[1765941675655,0.01141695,87589.0,87585.0,0.28978339]
[1765941675834,0.01141695,87589.0,87585.0,0.29078339]
[1765941676242,0.01141695,87589.0,87585.0,0.28978339]
[1765941676606,0.23975778,87589.0,87585.0,0.29078339]
[1765941676810,0.01141578,87598.0,87594.0,0.0114163]
[1765941676962,0.01141591,87597.0,87592.0,0.01141656]
[1765941677162,0.23973643,87597.0,87592.0,0.01141656]
[1765941677376,0.01141604,87596.0,87593.0,0.01141643]
[1765941678826,0.01141578,87598.0,87596.0,0.00861]
[1765941679114,0.01141578,87598.0,87594.0,0.0114163]
[1765941679115,0.00257338,87597.0,87594.0,0.23973992]
[1765941679437,0.01141578,87598.0,87594.0,0.23973992]
[1765941679785,0.001,87596.0,87595.0,0.01141617]
[1765941679995,0.01965287,87599.0,87596.0,0.23973696]
[1765941680198,0.01965287,87599.0,87596.0,0.28975535]
[1765941680407,0.001,87597.0,87596.0,0.28975535]
[1765941681225,0.01965287,87599.0,87596.0,0.28975535]
[1765941681632,0.03106852,87599.0,87596.0,0.06143443]
[1765941682014,0.23973319,87598.0,87596.0,0.05001839]
[1765941682233,0.04701,87597.0,87596.0,0.05001839]
[1765941682435,0.16083247,87597.0,87596.0,0.05001839]
[1765941682703,0.00822,87590.0,87589.0,0.05001839]
[1765941682904,0.01141708,87588.0,87582.0,0.23977461]
[1765941683079,0.01141708,87588.0,87585.0,0.06143587]
[1765941683280,0.01963682,87590.0,87587.0,0.05001839]
[1765941683488,0.01141708,87588.0,87585.0,0.01141748]
[1765941683688,0.01141734,87586.0,87583.0,0.06143613]
[1765941683897,0.01141708,87588.0,87583.0,0.06143613]
[1765941684130,0.01141721,87587.0,87585.0,0.05001839]
[1765941684334,0.24797507,87590.0,87587.0,0.05001839]
[1765941684654,0.01963682,87590.0,87587.0,0.05001839]
[1765941685023,0.02099167,87590.0,87587.0,0.05001839]
[1765941685619,0.02099167,87590.0,87587.0,0.0614356]
[1765941685845,0.00135485,87590.0,87587.0,0.28977806]
[1765941686110,0.00135485,87590.0,87587.0,0.29077806]
[1765941686774,0.00135485,87590.0,87589.0,0.08606839]
[1765941686989,0.00135485,87590.0,87589.0,0.06248839]
[1765941687623,0.00135485,87590.0,87589.0,0.18489701]
[1765941687832,0.00135485,87590.0,87589.0,0.05001839]
[1765941688046,0.00135485,87590.0,87589.0,0.05101839]
[1765941689460,0.01668485,87590.0,87589.0,0.05101839]
[1765941689759,0.04014485,87590.0,87589.0,0.05101839]
[1765941690140,0.00135485,87590.0,87589.0,0.05101839]
[1765941693115,0.00135485,87590.0,87589.0,0.09050839]
[1765941696377,0.00135485,87590.0,87589.0,0.06692839]
[1765941697453,0.00135485,87590.0,87589.0,0.08949839]
[1765941698289,0.00135485,87590.0,87589.0,0.06692839]
[1765941701607,0.00135485,87590.0,87589.0,0.08949839]
[1765941703093,0.00135485,87590.0,87589.0,0.06692839]
[1765941704164,0.00135485,87590.0,87589.0,0.05101839]
[1765941705154,0.00135485,87590.0,87589.0,0.07358839]
[1765941705354,0.00135485,87590.0,87589.0,0.10336874]
[1765941705934,0.00135485,87590.0,87589.0,0.08966839]
[1765941706896,0.00135485,87590.0,87589.0,0.06709839]
[1765941711011,0.00135485,87590.0,87589.0,0.10123839]
[1765941711217,0.00135485,87590.0,87589.0,0.11493874]
[1765941711433,0.00135485,87590.0,87589.0,0.21324574]
[1765941711657,0.00135485,87590.0,87589.0,0.19954539]
[1765941712842,0.00135485,87590.0,87589.0,0.10123839]
[1765941717027,0.00135485,87590.0,87589.0,0.07866839]
[1765941717388,0.00135485,87590.0,87589.0,0.10123839]
[1765941718060,0.00135485,87590.0,87589.0,0.05101839]
[1765941736135,0.27052141,87590.0,87589.0,0.05101839]
[1765941736764,0.24610141,87590.0,87589.0,0.05101839]
[1765941737952,0.27213428,87590.0,87589.0,0.05101839]
[1765941738332,0.27213428,87590.0,87589.0,0.001]
[1765941738731,0.28203382,87590.0,87589.0,0.001]
[1765941739101,0.26562382,87590.0,87589.0,0.001]
[1765941739531,0.30645382,87590.0,87589.0,0.001]
[1765941747601,0.28203382,87590.0,87589.0,0.001]
[1765941751512,0.30645382,87590.0,87589.0,0.001]
[1765941753322,0.36348374,87590.0,87589.0,0.001]
[1765941754470,0.30645382,87590.0,87589.0,0.001]
[1765941754670,0.36348374,87590.0,87589.0,0.001]
[1765941755711,0.30645382,87590.0,87589.0,0.001]
[1765941756469,0.28203382,87590.0,87589.0,0.001]
[1765941757277,0.03728726,87590.0,87589.0,0.02850263]
[1765941757488,0.00296772,87590.0,87589.0,0.2568418]
[1765941757700,0.01438533,87590.0,87589.0,0.2568418]
[1765941758136,0.00135485,87590.0,87589.0,0.35797019]
[1765941758952,0.00135485,87590.0,87589.0,0.05101839]
[1765941764573,0.00135485,87590.0,87589.0,0.07447839]
[1765941767404,0.00135485,87590.0,87589.0,0.09061839]
[1765941769647,0.00135485,87590.0,87589.0,0.10212839]
[1765941771513,0.00135485,87590.0,87589.0,0.07866839]
[1765941771712,0.00135485,87590.0,87589.0,0.22317641]
[1765941771924,0.00135485,87590.0,87589.0,0.31383955]
[1765941772494,0.00135485,87590.0,87589.0,0.20029874]
[1765941772694,0.00135485,87590.0,87589.0,0.21171387]
[1765941773727,0.00135485,87590.0,87589.0,0.11354352]
[1765941777096,0.00135485,87590.0,87589.0,0.22708433]
[1765941777764,0.00135485,87590.0,87589.0,0.37648433]
[1765941778235,0.00135485,87590.0,87589.0,0.37548433]
[1765941778435,0.00135485,87590.0,87589.0,0.37648433]
[1765941778867,0.00135485,87590.0,87589.0,0.49181548]
[1765941779215,0.00135485,87590.0,87589.0,0.51669315]
[1765941779424,0.00135485,87590.0,87589.0,0.40315234]
[1765941779621,0.00135485,87590.0,87589.0,0.51469315]
[1765941780030,0.00135485,87590.0,87589.0,0.51669315]
[1765941780212,0.00135485,87590.0,87589.0,0.51869315]
[1765941791188,0.00135485,87590.0,87589.0,0.37948433]
[1765941791827,0.00135485,87590.0,87589.0,0.26594352]
[1765941792270,0.00135485,87590.0,87589.0,0.26394352]
[1765941792522,0.00135485,87590.0,87589.0,0.21083352]
[1765941792724,0.00135485,87590.0,87589.0,0.16081513]
[1765941792725,0.04096485,87590.0,87589.0,0.16081513]
[1765941792930,0.04096485,87590.0,87589.0,0.1504]
[1765941793605,0.04096485,87590.0,87589.0,0.20041839]
[1765941793968,0.04096485,87590.0,87589.0,0.19941839]
[1765941794496,0.04096485,87590.0,87589.0,0.05101839]
[1765941796761,0.04096485,87590.0,87589.0,0.001]
[1765941796762,0.04257772,87590.0,87589.0,0.001]
[1765941796966,0.04666093,87590.0,87589.0,0.001]
[1765941797183,0.10369085,87590.0,87589.0,0.001]
[1765941797601,0.00822,87581.0,87579.0,0.06143665]
[1765941798429,0.00822,87581.0,87579.0,0.05001839]
[1765941801197,0.03121,87581.0,87579.0,0.05001839]
[1765941801397,0.00822,87581.0,87579.0,0.05001839]
[1765941801626,0.03961,87580.0,87579.0,0.05001839]
[1765941801827,0.00822,87581.0,87579.0,0.05001839]
[1765941802878,0.00822,87581.0,87579.0,0.27838121]
[1765941803083,0.01141748,87585.0,87581.0,0.05001839]
[1765941803420,0.01141761,87584.0,87581.0,0.05001839]
[1765941804823,0.01141761,87584.0,87581.0,0.28979617]
[1765941805424,0.01141761,87584.0,87581.0,0.06143639]
[1765941805848,0.01241761,87584.0,87581.0,0.06143639]
[1765941806865,0.001,87584.0,87581.0,0.06143639]
[1765941807069,0.001,87584.0,87581.0,0.07317639]
[1765941807265,0.001,87584.0,87581.0,0.30153451]
[1765941808545,0.001,87584.0,87581.0,0.28979451]
[1765941809528,0.001,87584.0,87581.0,0.06143639]
[1765941810724,0.02299,87582.0,87579.0,0.05001839]
[1765941811355,0.228362,87581.0,87579.0,0.05001839]
[1765941811588,0.01141787,87582.0,87579.0,0.05001839]
[1765941812181,0.24077052,87584.0,87581.0,0.05001839]
[1765941812431,0.01141761,87584.0,87581.0,0.28979606]
[1765941813620,0.01241761,87584.0,87581.0,0.28979606]
[1765941813798,0.001,87584.0,87581.0,0.28979606]
[1765941814396,0.01241761,87584.0,87581.0,0.06143639]
[1765941815218,0.001,87584.0,87581.0,0.06143639]
[1765941815425,0.001,87584.0,87581.0,0.28979477]
[1765941819259,0.24077123,87584.0,87581.0,0.05001839]
[1765941819462,0.01141787,87582.0,87580.0,0.05001839]
[1765941819667,0.02373,87580.0,87579.0,0.05001839]
[1765941819880,0.00822,87580.0,87579.0,0.05001839]
[1765941821080,0.01963774,87583.0,87581.0,0.05001839]
[1765941821684,0.00822,87583.0,87581.0,0.05001839]
[1765941821862,0.00822,87583.0,87581.0,0.27837632]
[1765941822068,0.01141748,87585.0,87583.0,0.05001839]
[1765941822448,0.02373,87583.0,87582.0,0.05001839]
[1765941822672,0.02373,87583.0,87577.0,0.01141852]
[1765941822673,0.26703263,87580.0,87579.0,0.05001839]
[1765941822883,0.24387263,87580.0,87579.0,0.05001839]
[1765941823939,0.011418,87581.0,87579.0,0.05001839]
[1765941824132,0.23977994,87581.0,87579.0,0.05001839]
[1765941824524,0.011418,87581.0,87579.0,0.05001839]
[1765941825347,0.23977976,87581.0,87579.0,0.05001839]
[1765941826769,0.23977976,87581.0,87578.0,0.1494]
[1765941826770,0.25209524,87579.0,87578.0,0.1494]
[1765941826988,0.33228516,87579.0,87578.0,0.1494]
[1765941827203,0.23661915,87566.0,87565.0,0.1494]
[1765941827405,0.23661915,87566.0,87565.0,0.19941839]
[1765941828027,0.23661915,87566.0,87561.0,0.1608206]
[1765941828028,0.01142008,87565.0,87561.0,0.1608206]
[1765941828251,0.03138,87566.0,87562.0,0.23983005]
[1765941828463,0.03138,87566.0,87563.0,0.27842304]
[1765941828690,0.03138,87566.0,87565.0,0.001]
[1765941829960,0.03138,87566.0,87565.0,0.002]
[1765941830288,0.00822,87566.0,87565.0,0.002]
[1765941830692,0.00822,87566.0,87565.0,0.001]
[1765941831726,0.00822,87566.0,87565.0,0.002]
[1765941831933,0.04689,87566.0,87565.0,0.002]
[1765941832725,0.04689,87566.0,87565.0,0.001]
[1765941833147,0.00822,87559.0,87554.0,0.00025001]
[1765941833330,0.26709784,87555.0,87554.0,0.00025001]
[1765941834349,0.26709784,87555.0,87554.0,0.0512684]
[1765941834775,0.26709784,87555.0,87554.0,0.0502684]
[1765941835169,0.26709784,87555.0,87554.0,0.0522684]
[1765941835940,0.26709784,87555.0,87554.0,0.0532684]
[1765941836339,0.26709784,87555.0,87554.0,0.0502684]
[1765941836540,0.24393784,87555.0,87554.0,0.0512684]
[1765941836980,0.26709784,87555.0,87554.0,0.0512684]
[1765941837396,0.01142113,87557.0,87555.0,0.05001839]
[1765941837735,0.23984595,87557.0,87555.0,0.05001839]
[1765941838179,0.01551,87555.0,87554.0,0.0502684]
[1765941838458,0.03867,87555.0,87554.0,0.0502684]
[1765941838661,0.03867,87555.0,87554.0,0.00025001]
[1765941839066,0.01551,87555.0,87554.0,0.00025001]
[1765941840372,0.01551,87555.0,87554.0,0.00125001]
[1765941840794,0.23984595,87557.0,87554.0,0.00125001]
[1765941841013,0.00822,87559.0,87556.0,0.28986488]
[1765941841216,0.00822,87559.0,87558.0,0.05001839]
[1765941841925,0.03432963,87562.0,87559.0,0.01142087]
[1765941842143,0.27416159,87562.0,87558.0,0.15697337]
[1765941842351,0.0114206,87561.0,87558.0,0.15697337]
[1765941842615,0.0114206,87561.0,87558.0,0.06143939]
[1765941843000,0.0114206,87561.0,87556.0,0.23984649]
[1765941843001,0.01142074,87560.0,87557.0,0.05001839]
[1765941843457,0.01142074,87560.0,87557.0,0.06143952]
[1765941844046,0.01142074,87560.0,87557.0,0.05001839]
[1765941844247,0.22842001,87558.0,87557.0,0.05001839]
[1765941844445,0.25585101,87558.0,87556.0,0.05001839]
[1765941844624,0.27956101,87558.0,87556.0,0.05001839]
[1765941845032,0.01142113,87557.0,87555.0,0.05001839]
[1765941846059,0.03972,87556.0,87555.0,0.05001839]
[1765941846525,0.011421,87558.0,87555.0,0.05001839]
[1765941847409,0.00822,87559.0,87557.0,0.05001839]
[1765941849645,0.00822,87559.0,87557.0,0.27843929]
[1765941850273,0.0457501,87562.0,87556.0,0.23984649]
[1765941850274,0.23982671,87564.0,87561.0,0.00926]
[1765941850494,0.23982671,87564.0,87562.0,0.02371]
[1765941851140,0.23982671,87564.0,87563.0,0.05001839]
[1765941851356,0.04794,87559.0,87558.0,0.05001839]
[1765941855510,0.02423,87559.0,87558.0,0.05001839]
[1765941855715,0.23983485,87561.0,87558.0,0.05001839]
[1765941857008,0.24083485,87561.0,87558.0,0.05001839]
[1765941857711,0.2398376,87560.0,87557.0,0.05001839]
[1765941857918,0.03972,87558.0,87557.0,0.05001839]
[1765941858044,0.03972,87558.0,87555.0,0.05001839]
[1765941858045,0.03972,87556.0,87555.0,0.05001839]
[1765941858381,0.03972,87556.0,87554.0,0.00025001]
[1765941858586,0.26814784,87555.0,87554.0,0.0502684]
[1765941858831,0.26814784,87555.0,87554.0,0.00025001]
[1765941859466,0.26814784,87555.0,87554.0,0.00125001]
[1765941859677,0.03972,87555.0,87554.0,0.00125001]
[1765941860781,0.01601,87555.0,87554.0,0.00025001]
[1765941861159,0.01601,87555.0,87554.0,0.00125001]
[1765941861394,0.03513113,87557.0,87554.0,0.00125001]
[1765941861599,0.02371,87556.0,87554.0,0.00125001]
[1765941862183,0.01142113,87557.0,87554.0,0.00025001]
[1765941862605,0.03513113,87557.0,87554.0,0.00025001]
[1765941862784,0.03513113,87557.0,87554.0,0.01167153]
[1765941862984,0.01142113,87557.0,87554.0,0.01167153]
[1765941863435,0.03513113,87557.0,87554.0,0.01167153]
[1765941864849,0.03972,87555.0,87554.0,0.00025001]
[1765941865605,0.01601,87555.0,87554.0,0.00025001]
[1765941865937,0.01964087,87559.0,87556.0,0.05001839]
[1765941866295,0.00822,87559.0,87556.0,0.06143965]
[1765941866898,0.00822,87559.0,87556.0,0.289863]
[1765941867099,0.00822,87559.0,87558.0,0.05001839]
[1765941867320,0.03106121,87563.0,87559.0,0.23983827]
[1765941867548,0.03106121,87563.0,87560.0,0.01142074]
[1765941867977,0.01142034,87563.0,87560.0,0.01142074]
[1765941868182,0.02214154,87563.0,87560.0,0.01142074]
[1765941868343,0.01142047,87562.0,87559.0,0.01142087]
[1765941868752,0.01142047,87562.0,87558.0,0.06143939]
[1765941869888,0.01242047,87562.0,87558.0,0.06143939]
[1765941870081,0.01242047,87562.0,87559.0,0.02371]
[1765941870210,0.01242047,87562.0,87559.0,0.03513087]
[1765941870410,0.01242047,87562.0,87559.0,0.01142087]
[1765941870631,0.001,87562.0,87561.0,0.01201]
[1765941871098,0.001,87562.0,87559.0,0.01142087]
[1765941871448,0.01142034,87563.0,87559.0,0.01142087]
[1765941871642,0.02214042,87563.0,87559.0,0.01142087]
[1765941872014,0.001,87562.0,87559.0,0.01142087]
[1765941872188,0.23983005,87562.0,87559.0,0.01142087]
[1765941872501,0.24083005,87562.0,87559.0,0.01142087]
[1765941872634,0.23983005,87562.0,87559.0,0.01142087]
[1765941873058,0.0114206,87561.0,87558.0,0.28985728]
[1765941873509,0.0114206,87561.0,87558.0,0.06143939]
[1765941873844,0.0114206,87561.0,87558.0,0.05001839]
[1765941873981,0.01142074,87560.0,87557.0,0.05001839]
[1765941874969,0.01142087,87559.0,87557.0,0.05001839]
[1765941875122,0.23984079,87559.0,87557.0,0.05001839]
[1765941875344,0.24806079,87559.0,87556.0,0.05001839]
[1765941875708,0.27227079,87559.0,87556.0,0.05001839]
[1765941876163,0.01964087,87559.0,87556.0,0.06143965]
[1765941876366,0.00822,87559.0,87556.0,0.28986304]
[1765941876775,0.01142074,87560.0,87557.0,0.01142113]
[1765941877075,0.01141995,87566.0,87561.0,0.06143899]
[1765941877281,0.01141995,87566.0,87563.0,0.01142034]
[1765941877282,0.01071961,87566.0,87563.0,0.01142034]
[1765941877482,0.01142074,87566.0,87563.0,0.01142034]
[1765941877715,0.0393,87561.0,87560.0,0.05001839]
[1765941878114,0.00822,87559.0,87558.0,0.05001839]
[1765941878323,0.2366374,87559.0,87558.0,0.05001839]
[1765941879189,0.2603574,87559.0,87555.0,0.05001839]
[1765941879350,0.27177827,87559.0,87555.0,0.06143978]
[1765941880074,0.04336087,87559.0,87555.0,0.06143978]
[1765941880589,0.011421,87558.0,87555.0,0.21083978]
[1765941880812,0.0393,87556.0,87555.0,0.19941839]
[1765941883423,0.0393,87556.0,87555.0,0.20041839]
[1765941885462,0.04091287,87556.0,87555.0,0.20041839]
[1765941886744,0.04091287,87556.0,87555.0,0.05101839]
[1765941889464,0.01719287,87556.0,87555.0,0.05101839]
[1765941890218,0.01719287,87556.0,87555.0,0.27944623]
[1765941890439,0.00161287,87556.0,87555.0,0.27944623]
[1765941890640,0.2456181,87556.0,87555.0,0.05101839]
[1765941890814,0.2693381,87556.0,87555.0,0.05101839]
[1765941892261,0.38316057,87556.0,87555.0,0.05101839]
[1765941892489,0.2693381,87556.0,87555.0,0.05101839]
[1765941895471,0.2456181,87556.0,87555.0,0.05101839]
[1765941896655,0.01719287,87556.0,87555.0,0.05101839]
[1765941896855,0.00161287,87556.0,87555.0,0.05101839]
[1765941898022,0.04091287,87556.0,87555.0,0.05101839]
[1765941898224,0.04499608,87556.0,87555.0,0.001]
[1765941898938,0.05571944,87556.0,87555.0,0.001]
[1765941899144,0.11732717,87556.0,87555.0,0.001]
[1765941899610,0.26772784,87555.0,87554.0,0.00025001]
[1765941899826,0.33548112,87555.0,87554.0,0.00025001]
[1765941900244,0.2784512,87555.0,87554.0,0.00025001]
[1765941900839,0.33548112,87555.0,87554.0,0.00025001]
[1765941901257,0.2784512,87555.0,87554.0,0.00025001]
[1765941901611,0.33548112,87555.0,87554.0,0.00025001]
[1765941902178,0.2784512,87555.0,87554.0,0.00025001]
[1765941902397,0.33548112,87555.0,87554.0,0.00025001]
[1765941902620,0.2784512,87555.0,87554.0,0.00025001]
[1765941903028,0.33548112,87555.0,87554.0,0.00025001]
[1765941903461,0.2784512,87555.0,87554.0,0.00025001]
[1765941903873,0.26772784,87555.0,87554.0,0.00025001]
[1765941904362,0.0393,87555.0,87554.0,0.00025001]
[1765941904503,0.23983762,87560.0,87554.0,0.00025001]
[1765941904504,0.01964021,87564.0,87560.0,0.23983518]
[1765941904874,0.01964021,87564.0,87562.0,0.05001839]
[1765941904875,0.01804,87564.0,87562.0,0.05001839]
[1765941905074,0.01141943,87570.0,87562.0,0.05001839]
[1765941905075,0.03432771,87570.0,87568.0,0.22839393]
[1765941905282,0.32837917,87572.0,87569.0,0.05001839]
[1765941905487,0.24801222,87576.0,87572.0,0.01141917]
[1765941905900,0.03767748,87585.0,87582.0,0.01141787]
[1765941906099,0.03767748,87585.0,87581.0,0.011418]
[1765941906100,0.02212946,87584.0,87581.0,0.011418]
[1765941906317,0.01141774,87583.0,87579.0,0.23978187]
[1765941906517,0.01141787,87582.0,87579.0,0.05001839]
[1765941907124,0.01141787,87582.0,87579.0,0.06143665]
[1765941907332,0.01141774,87583.0,87580.0,0.01141813]
[1765941907544,0.23975696,87589.0,87583.0,0.01141774]
[1765941907767,0.00135485,87590.0,87589.0,0.22833917]
[1765941908197,0.00135485,87590.0,87589.0,0.26764917]
[1765941908821,0.00135485,87590.0,87589.0,0.01514]
[1765941909055,0.00135485,87590.0,87588.0,0.22834134]
[1765941909327,0.00135485,87590.0,87588.0,0.05001839]
[1765941909725,0.01141695,87589.0,87586.0,0.05001839]
[1765941909947,0.01141695,87589.0,87582.0,0.06143626]
[1765941909948,0.01141748,87585.0,87582.0,0.06143626]
[1765941910151,0.01141708,87588.0,87584.0,0.061436]
[1765941910469,0.23975931,87588.0,87584.0,0.061436]
[1765941910895,0.23975958,87588.0,87584.0,0.061436]
[1765941911104,0.01141708,87588.0,87584.0,0.061436]
[1765941911457,0.01141721,87587.0,87584.0,0.061436]
[1765941911821,0.01141708,87588.0,87584.0,0.061436]
[1765941911822,0.01241708,87588.0,87585.0,0.01141748]
[1765941912043,0.01241708,87588.0,87586.0,0.05001839]
[1765941912484,0.01141721,87587.0,87585.0,0.05001839]
[1765941912689,0.22834699,87586.0,87585.0,0.05001839]
[1765941912883,0.23976433,87586.0,87584.0,0.05001839]
[1765941913264,0.04015,87584.0,87583.0,0.05001839]
[1765941913622,0.23978164,87580.0,87577.0,0.05001839]
[1765941914031,0.26851785,87578.0,87577.0,0.05001839]
[1765941914596,0.04015,87578.0,87577.0,0.05001839]
[1765941915025,0.04015,87578.0,87577.0,0.05101839]
[1765941915427,0.04015,87578.0,87577.0,0.05001839]
[1765941915892,0.04015,87578.0,87577.0,0.05101839]
[1765941926674,0.04423321,87578.0,87577.0,0.001]
[1765941927073,0.04015,87578.0,87577.0,0.001]
[1765941927275,0.228367,87579.0,87577.0,0.001]
[1765941927484,0.228367,87579.0,87574.0,0.01141891]
[1765941927687,0.23978526,87579.0,87575.0,0.01141878]
[1765941927895,0.01241839,87578.0,87575.0,0.01141878]
[1765941928098,0.01441839,87578.0,87575.0,0.01141878]
[1765941928271,0.01141839,87578.0,87575.0,0.01141878]
[1765941928679,0.01141852,87577.0,87573.0,0.22837865]
[1765941928883,0.01141865,87576.0,87572.0,0.01141917]
[1765941929264,0.01141865,87576.0,87573.0,0.01141904]
[1765941930890,0.01141891,87574.0,87572.0,0.05001839]
[1765941931048,0.22838089,87573.0,87572.0,0.05001839]
[1765941931458,0.22838089,87573.0,87570.0,0.05001839]
[1765941931662,0.23979993,87573.0,87570.0,0.06143782]
[1765941932089,0.01141904,87573.0,87570.0,0.06143782]
[1765941933115,0.01141904,87573.0,87570.0,0.28982646]
[1765941933329,0.01963878,87575.0,87572.0,0.05001839]
[1765941933731,0.01963878,87575.0,87572.0,0.06143756]
[1765941934340,0.00822,87575.0,87572.0,0.28981936]
[1765941934543,0.00822,87575.0,87573.0,0.2283792]
[1765941935770,0.00822,87575.0,87572.0,0.28981936]
[1765941936900,0.01963878,87575.0,87572.0,0.06143756]